Cogmind - Beta 14 @@@ ROGUE MODE // 2024.12.24 @ 21:03:12 Player: Derk Result: Destroyed by TG-2IG(R) with Subdweller Laser Performance ------------- Evolutions (0) 0 Regions Visited (3) 600 Robots Destroyed (40) 200 Value Destroyed (857) 857 Prototype IDs (11) 220 Alien Tech Used (0) 0 Bonus (0) 0 TOTAL SCORE: 1877 Bonus ------- None Cogmind --------- Core Integrity 0/250 Matter 274/300 Energy 70/100 System Corruption 0% Temperature Cool (15) Movement Treading (165) Location -10/Subcaves Parts ------- > --- POWER (1) -------- (None) > --- PROPULSION (2) --- Light Treads Armored Treads > --- UTILITY (2) ------ Medium Storage Unit Gun Armor > --- WEAPON (2+2) ----- Pulse Rifle Light Assault Rifle (+) Battle Rifle (+) Maul > --- INVENTORY (10) --- Wheel Disposable Heat Sink Large Matter Pod (150) Experimental Sensor Array Hardened Light Armor Plating Hardened Light Armor Plating Reactive Plating Improved Trap Extractor (0/6) Rocket Launcher Peak State ------------ > --- POWER ------------ Light Ion Engine > --- PROPULSION ------- Light Treads Armored Treads > --- UTILITY ---------- Medium Storage Unit Gun Armor > --- WEAPON ----------- Pulse Rifle Light Assault Rifle Battle Rifle Maul > --- INVENTORY -------- Light Treads Wheel Disposable Heat Sink Large Matter Pod Experimental Sensor Array Hardened Light Armor Plating Hardened Light Armor Plating Reactive Plating Improved Trap Extractor Rocket Launcher [Rating: 25] Favorites ----------- Power Ion Engine Engine Ion Engine Power Core Light Nuclear Core Propulsion Aluminum Leg Treads Light Treads Leg Aluminum Leg Wheel Wheel Utility Medium Storage Unit Device Seismic Detector Storage Medium Storage Unit Processor Signal Interpreter Protection Hardened Light Armor Plating Weapon Maul Energy Gun Heavy EM Pulse Gun Ballistic Gun Light Assault Rifle Impact Weapon Maul Build | -11 -10 -10 -10 ------- Run | Yrd Mat Min Sub Slots Evolved . | . . . . Power . | . . . . Propulsion . | . . . . Utility . | . . . . Weapon . | . . . . Parts Attached 42 | 7 25 3 7 Power 5 | 1 3 . 1 Engine 4 | 1 2 . 1 Core 1 | . 1 . . Reactor . | . . . . Propulsion 15 | 2 10 2 1 Treads 6 | . 3 2 1 Leg 3 | . 3 . . Wheel 6 | 2 4 . . Hover . | . . . . Flight . | . . . . Utility 8 | 2 4 1 1 Device 2 | 2 . . . Storage 1 | . 1 . . Processor 1 | . 1 . . Hackware . | . . . . Protection 4 | . 2 1 1 Artifact . | . . . . Weapon 14 | 2 8 . 4 Energy Gun 7 | 1 5 . 1 Energy Cannon . | . . . . Ballistic Gun 5 | 1 2 . 2 Ballistic Cannon . | . . . . Launcher . | . . . . Special Weapon . | . . . . Impact Weapon 2 | . 1 . 1 Slashing Weapon . | . . . . Piercing Weapon . | . . . . Special Melee Weapon . | . . . . Unidentified Prototypes . | . . . . Parts Lost 10 | . 6 . 4 Power 3 | . 1 . 2 Propulsion 2 | . 1 . 1 Utility 1 | . 1 . . Weapon 4 | . 3 . 1 Highest Loss Streak 3 | . 3 . 2 To Critical Strikes . | . . . . Average Slot Usage (%) 96 | . 98 100 90 Engine 11 | . 9 14 11 Core 1 | . 4 . . Treads 13 | . 9 8 22 Leg 9 | . 10 19 . Wheel 3 | . 8 . . Device 2 | . 6 . . Storage 11 | . 9 14 11 Processor 1 | . 4 . . Protection 10 | . 7 14 11 Energy Gun 13 | . 13 14 12 Ballistic Gun 6 | . 8 . 10 Impact Weapon 9 | . 4 14 10 Peak Build Rating 25 | 9 12 15 25 Average Rating 14 | 5 9 11 22 On Entrance 8 | . 9 11 15 Naked Turns . | . . . . Heaviest Build 31 | 8 26 31 31 Greatest Support 40 | 20 40 40 40 Greatest Overweight (x) 2 | . 2 1 1 Average Overweight (x) . | . . . . Largest Inventory Capacity 10 | 5 10 10 10 Average Capacity 9 | 5 8 10 10 Most Carried 10 | 5 10 10 10 Average Carried 8 | 2 7 9 9 Final Capacity 10 | 5 10 10 10 Final Carried 10 | 5 9 10 9 Class Distribution -------------------- 93% | Mutant 6% | Gunner Dominant Class ---------------- Mutant | -10/Materials Mutant | -10/Mines Mutant | -10/Subcaves Resources | -11 -10 -10 -10 ----------- Run | Yrd Mat Min Sub Matter Collected 789 | 281 287 150 71 Remotely . | . . . . Salvage Created 1298 | 148 920 155 75 Parts 81 | 15 46 11 9 Haulers Intercepted 2 | . 2 . . Recyclers Shooed . | . . . . Parts Field Recycled . | . . . . Retrieved Matter . | . . . . Parts Self-Destructed 8 | . . . 8 Prevented . | . . . . Kills | -11 -10 -10 -10 ------- Run | Yrd Mat Min Sub Combat Hostiles Destroyed 28 | 1 19 5 3 Guns 25 | 1 16 5 3 AOE 3 | . 3 . . Classes Destroyed 9 | 3 5 . 1 Worker 2 | 1 1 . . Tunneler 3 | 3 . . . Hauler 2 | . 2 . . Recycler 1 | . 1 . . Operator 1 | . 1 . . Watcher 3 | . 3 . . Swarmer 10 | . 6 3 1 Grunt 16 | 1 13 2 . Subdweller 2 | . . . 2 Best Kill Streak 4 | 3 4 3 1 Combat Bots Only 3 | 1 3 3 1 Max Kills in Single Turn 3 | 1 3 1 1 Gunslinging . | . . . . Exploded 2 | . 2 . . Melee . | . . . . Uniques/NPCs Destroyed . | . . . . Combat | -11 -10 -10 -10 -------- Run | Yrd Mat Min Sub Hostile Shots Fired 169 | 3 96 27 43 Missed 45 | 1 30 5 9 Damage Taken 1620 | 20 818 235 547 Core 251 | . 71 79 101 Absorbed by Shields . | . . . . Ignored by Resistances 61 | . . . 61 Regen/Repaired (Parts) 31 | . 31 . . Core Remaining (%) 100 | 100 . . . Volleys Fired 119 | 11 58 21 29 Largest 3 | 2 2 1 3 Hottest 108 | 60 65 45 108 Shots Fired 187 | 22 101 21 43 Gun 187 | 22 101 21 43 Cannon . | . . . . Launcher . | . . . . Special . | . . . . Kinetic 73 | 11 53 . 9 Thermal 28 | . . . 28 Explosive . | . . . . Electromagnetic 86 | 11 48 21 6 Robot Hit Streak 9 | 6 9 6 8 Robot Miss Streak 5 | 2 5 1 5 Penetration Max . | . . . . Secondary Targets 3 | . 3 . . Max Gunslinging Chain 1 | . 1 . . Shots Hit Robots 115 | 12 60 14 29 Core Hits 51 | 7 32 6 6 Critical Kills . | . . . . Critical Parts Destroyed 1 | . 1 . . Critical Strikes 4 | . 3 1 . Corrupt 3 | . 2 1 . Smash 1 | . 1 . . Melee Attacks 16 | . 4 2 10 Impact 16 | . 4 2 10 Slashing . | . . . . Piercing . | . . . . Sneak Attacks 3 | . 3 . . Combat Hostiles . | . . . . Follow-up Attacks . | . . . . Damage Inflicted 2188 | 133 1395 204 456 Guns 1494 | 133 701 204 456 Cannons . | . . . . Explosions 441 | . 441 . . Melee 253 | . 253 . . Ramming . | . . . . Kinetic 361 | 39 241 . 81 Thermal 529 | . 223 . 306 Explosive 218 | . 218 . . Electromagnetic 827 | 94 460 204 69 Impact 253 | . 253 . . Slashing . | . . . . Piercing . | . . . . Highest Corruption . | . . . . Average Corruption . | . . . . Corruption Purged . | . . . . Corruption Blocked . | . . . . Overload Shots . | . . . . Overflow Damage 344 | . 344 . . Projectiles . | . . . . Explosions 126 | . 126 . . Melee 218 | . 218 . . Knockbacks 2 | . 2 . . Impact 2 | . 2 . . Kinetic . | . . . . Secondary . | . . . . Self-Inflicted Damage 145 | . 145 . . Shots 3 | . 3 . . Rammed . | . . . . Targets Rammed . | . . . . Kicked . | . . . . Crushed . | . . . . Highest Temperature 184 | 52 184 124 24 Average Temperature 56 | 18 69 47 8 Received Heat Transfer 396 | 12 273 69 42 Siege Activations . | . . . . Robots Corrupted 3 | . 3 . . Combat Hostiles . | . . . . Parts Fried 2 | . 2 . . Impact Corruptions 8 | . 8 . . Robots Melted . | . . . . Combat Hostiles . | . . . . Parts Melted . | . . . . Heat Transferred 966 | . 300 . 666 Parts Sabotaged . | . . . . Parts Stolen . | . . . . Parts Stripped . | . . . . Power Chain Reactions 2 | . 2 . . Alert | -11 -10 -10 -10 ------- Run | Yrd Mat Min Sub Peak Influence 212 | 40 212 195 . Initial 75 | . 26 75 . Average 78 | 15 101 54 . Maximum Alert Level 1 | . 1 . . Low Security (%) 91 | 100 85 100 . Level 1 8 | . 14 . . Level 2 . | . . . . Level 3 . | . . . . Level 4 . | . . . . Level 5 . | . . . . High Security . | . . . . Max Security . | . . . . Squads Dispatched 3 | . 3 . . Investigation 2 | . 2 . . Extermination . | . . . . Reinforcement 1 | . 1 . . Assault . | . . . . Garrison . | . . . . Intercept . | . . . . Searches Triggered . | . . . . Construction Impeded . | . . . . Haulers Reinforced . | . . . . Active Scanning Responses . | . . . . Cargo Convoy Interrupts . | . . . . Stealth | -11 -10 -10 -10 --------- Run | Yrd Mat Min Sub Distress Signals 1 | . 1 . . Communications Jammed . | . . . . Distress Signals . | . . . . Times Spotted 45 | 1 31 5 8 Peak Tracking Total 4 | 1 4 3 2 Tactical Retreats 5 | . 4 . 1 Traps | -11 -10 -10 -10 ------- Run | Yrd Mat Min Sub Traps Triggered 4 | . 2 1 1 Indirectly . | . . . . Trap Hack Attempts . | . . . . Triggered . | . . . . Disarmed . | . . . . Reprogrammed . | . . . . Reused . | . . . . Traps Extracted . | . . . . Installed . | . . . . Triggered . | . . . . Machines | -11 -10 -10 -10 ---------- Run | Yrd Mat Min Sub Machines Disabled 3 | . 2 . 1 Max in Single Turn 1 | . 1 . 1 Machines Repaired . | . . . . Machines Dismantled . | . . . . Machines Sabotaged . | . . . . Overloaded Fab Kills . | . . . . Hacking | -11 -10 -10 -10 --------- Run | Yrd Mat Min Sub Machines Accessed 8 | . 6 1 1 Terminals 5 | . 5 . . Fabricators . | . . . . Repair Stations 1 | . 1 . . Recycling Units . | . . . . Scanalyzers . | . . . . Garrison Access . | . . . . Total Hacks 26 | . 16 1 9 Successful 14 | . 4 1 9 Failed 12 | . 12 . . Catastrophic 3 | . 3 . . Database Lockouts . | . . . . Manual 10 | . 10 . . Terminals 14 | . 14 . . Fabricators . | . . . . Repair Stations 2 | . 2 . . Recycling Units . | . . . . Scanalyzers . | . . . . Garrison Access . | . . . . Terminal Hacks 10 | . . 1 9 Record 8 | . . . 8 Open Door 1 | . . 1 . Derelict Proto ID Bank 1 | . . . 1 Fabricator Hacks . | . . . . Repair Station Hacks 2 | . 2 . . Scan Component 1 | . 1 . . Repair 1 | . 1 . . Recycling Unit Hacks . | . . . . Scanalyzer . | . . . . Garrison Access Hacks . | . . . . Unauthorized Hacks 2 | . 2 . . Terminals 2 | . 2 . . Botnet 2 | . 2 . . Fabricators . | . . . . Repair Stations . | . . . . Recycling Units . | . . . . Scanalyzers . | . . . . Garrison Access . | . . . . Data Cores Recovered . | . . . . Used . | . . . . Hacking Detections 5 | . 5 . . Full Trace Events 1 | . 1 . . Feedback Events . | . . . . Feedback Blocked . | . . . . Robot Schematics Acquired . | . . . . Robots Built . | . . . . Authchips . | . . . . Time . | . . . . Total Robot Build Rating . | . . . . Part Schematics Acquired . | . . . . Parts Built . | . . . . Authchips . | . . . . Time . | . . . . Total Part Build Rating . | . . . . Parts Repaired 1 | . 1 . . Time 26 | . 26 . . Parts Recycled . | . . . . Recycled Matter . | . . . . Retrieved Matter . | . . . . Retrieved Components . | . . . . Parts Scanalyzed . | . . . . Part Schematics Acquired . | . . . . Parts Damaged . | . . . . Bothacking | -11 -10 -10 -10 ------------ Run | Yrd Mat Min Sub Used RIF Installer . | . . . . Robots Hacked . | . . . . Non-combat . | . . . . Combat . | . . . . Robot Hacks Applied . | . . . . Relay Couplers Released . | . . . . Fabnet Peak Effective % . | . . . . Robots Rewired . | . . . . Allies Hacked . | . . . . Hacks Repelled . | . . . . Allies | -11 -10 -10 -10 -------- Run | Yrd Mat Min Sub Total Allies . | . . . . Largest Group . | . . . . Highest-Rated Group . | . . . . Highest-Rated Ally . | . . . . Total Orders . | . . . . Ally Attacks . | . . . . Total Damage . | . . . . Kills . | . . . . Allies Corrupted . | . . . . Allies Melted . | . . . . Intel | -11 -10 -10 -10 ------- Run | Yrd Mat Min Sub Robot Analysis Total . | . . . . Derelict Logs Recovered 1 | . . 1 . Drone Launches . | . . . . Drone Recoveries . | . . . . Exploration | -11 -10 -10 -10 ------------- Run | Yrd Mat Min Sub Turns Passed 4144 | 129 1542 1171 1302 Spaces Moved 2277 | 103 870 602 702 Core 17 | 17 . . . Treads 1149 | . 244 203 702 Legs 667 | . 268 399 . Wheels 444 | 86 358 . . Hover . | . . . . Flight . | . . . . Fastest Speed 50 | 50 80 165 165 Average Speed 154 | 75 137 181 165 Slowest Speed 260 | 80 260 190 250 Overloaded Moves . | . . . . Propulsion Burnouts . | . . . . Robots Hopped . | . . . . Cave-ins Triggered . | . . . . Exploration Rate (%) 58 | 9 97 89 40 Regions Visited 3 Branch Regions 2 Pre-discovered Areas . | . . . . Known Exits Taken 1 | . 1 . . Unknown Exits Taken 2 | 1 . 1 . Scrap Searched 1 | . . 1 . Spaces Dug 2 | . 1 . 1 Terrain Destroyed 23 | . 22 . 1 Melee 2 | . 1 . 1 Projectile . | . . . . AOE 21 | . 21 . . Terrain Rammed . | . . . . Walls Destroyed . | . . . . Machines Disabled . | . . . . Actions | -11 -10 -10 -10 --------- Run | Yrd Mat Min Sub Total 2697 | 132 1123 660 782 Wait 175 | 1 127 15 32 Move 2274 | 102 869 601 702 Hop . | . . . . Pick Up 39 | 8 20 9 2 Fast Attach 22 | 7 12 1 2 Attach 12 | . 8 1 3 Detach . | . . . . Swap 8 | . 5 1 2 Drop 32 | 3 20 9 . Fire 119 | 11 58 21 29 Melee 16 | . 4 2 10 Ram . | . . . . Kick . | . . . . Crush . | . . . . Escape Stasis . | . . . . Rewire . | . . . . Trap . | . . . . Miscellaneous . | . . . . Route ------- -11/Scrapyard -10/Materials (discovered 4 exits: *Mat x3 / *Min) -10/Mines (discovered 3 exits: *Mat x2 / *Sub) -10/Subcaves History --------- Turn | Location | Event 2 | -11/Scrapyard | Met Revision 17 65 | -11/Scrapyard | Discovered new exit (range 8) 130 | -11/Scrapyard | Entered Materials 208 | -10/Materials | Discovered new exit (range 16) 311 | -10/Materials | Build established: Mutant 378 | -10/Materials | Identified exit to Mines 691 | -10/Materials | Repaired EM Pulse Gun? 783 | -10/Materials | Discovered new exit (range 9) 794 | -10/Materials | Identified exit to Materials 1162 | -10/Materials | Lost 3 parts (1u2w) 1191 | -10/Materials | Discovered exit to Materials (range 8) 1533 | -10/Materials | Discovered exit to Materials (range 3) 1672 | -10/Materials | Entered Mines 1795 | -10/Mines | Discovered exit to Materials (range 10) 1855 | -10/Mines | Discovered exit to Materials (range 6) 1902 | -10/Mines | Core integrity fell below 50% 2239 | -10/Mines | Received a Rocket Launcher from a helpful Derelict 2478 | -10/Mines | Met a Derelict who couldn't figure out how to use a Trap Extractor 2751 | -10/Mines | Found a damaged Exp. Sensor Array with a note attached 2756 | -10/Mines | Found Prototype Device 2837 | -10/Mines | Discovered new exit (range 3) 2843 | -10/Mines | Entered Subcaves 2969 | -10/Subcaves | Core integrity fell below 20% 3005 | -10/Subcaves | Visited 4L-MR0's lab 3024 | -10/Subcaves | Found Gun Armor 3026 | -10/Subcaves | Attached Gun Armor, gained temporary slots: Weapon x2 3784 | -10/Subcaves | A swath of the cavern ceiling suddenly collapsed 4145 | -10/Subcaves | Destroyed by TG-2IG(R) with Subdweller Laser Last Messages --------------- 03127_ S-10 Pest destroyed. 03127_ Destroyed Flight Unit. 03133_ Flight Unit fries itself beyond repair. 03133_ Critical hit (Destroy). 03133_ S-10 Pest destroyed. 03134_ Flight Unit fries itself beyond repair. 03139_ S-10 Pest destroyed. 03144_ Lgt. Ion Engine fries itself beyond repair. 03144_ Lgt. Assault Rifle fries itself beyond repair. 03146_ Lgt. Ion Engine fries itself beyond repair. 03146_ Flight Unit fries itself beyond repair. 03146_ Acquired Lgt. Assault Rifle. 03150_ Acquired 11 matter. 03157_ Lgt. Ion Engine fries itself beyond repair. 03557_ 9G-Y06(u) tweaks Twisted Machinery. A swath of the cavern ceiling suddenly collapses. 03854_ Acquired Battle Rifle. 03941_ 9G-Y06(u) builds Twisted Machinery. 04115_ Lgt. Treads destroyed. 04117_ Lgt. Ion Engine destroyed. Map ----- +----------------------------------------------------+ | ???????????????????????????????????????????????? | | ???????????????????????????????????????????????? | | ???????????????????????????????????????????????? | | ???????????????????????????????????????????????? | | ???????????????????????????????????????????????? | | ???????????????????????????????????????????????? | | ???????????????????????????????????????????????? | | ???????????????????????????????????????????????? | | ???????????????????????????????????????????????? | | ????????????????????????????????????? ?????????? | | ????????????????????????????????????? ????????? | | ????????????????????????????????????? ????????? | | ???????????????????????????????????? ????????? | | ???????????????????????????????????? #????????? | | ??????????????????????????? "? ????? ????????? | | ?????????????????????????? " #???? ##???????? | | ??????????????????????????"% " #???? ###?????? | | ?????????????????????????#" " #???? #?????? | | ?????????????????????????#"""""#???? % %#?????? | | ???????????????? ????????#"""""##### % #??????? | | ????????????????" ???????#" #???????? | | ????????????????#" ???????# % #??????### | | ????????????????#""#?######" % #??????# | | ???????????????##" ## "" ##?????### | | ???????????????#" "" %R" ###???#"" | | ????????????????# " @ R" %#???#"" | | ????????????????# #### ### # ### ###???### | | ?????????????????????###?### #?## ##???????? | | ???????????????????????????# %#?## #????????? | | ?????????????????????????### ### #????????? | | ????????????????????????## ###### #????????? | | ???????????????????????## #?### ##????????? | | ??????????????????????## ## ##????????## | | ??????????????????????# # ####???### | | ?????????????????????# #?### | | ????????????????????? # #?# | | ????????????????????? #?### # # #?# | | ?????????????????##??? #### ## ##### #?# | | ?????????????????# % ## #% ## ##??# #?# | | ???????????????????? ## #?## ### | | ???????????????????????????# #% # # | | ?????????????????#???####### % | | ?????????????????# # # % | | ??????????????????# # ## | | ??????????????????# ###### ## | | ??????????????????# # #### #????# ##### | | ?????????????????????????### #????## #???# | | ??????????????????????????## #?????### #???# | | ????????????????????????### #???????#####???? | | ????????????????????????# #???????????????? | +----------------------------------------------------+ Best States ------------- Heat Dissipation 25 Energy Generation 14 Energy Capacity 250 Matter Stores 300 Matter Capacity 300 Sight Range 16 Terrain Scan Range 16 Terrain Scan Density 10 Armor Coverage 150 Resistance: KI 20 Evasion (%) 50 Recoil Reduction 2 Item Schematics ----------------- None Robot Schematics ------------------ None Fabricated ------------ Nothing Alien Tech Used ----------------- None Achievements -------------- None Challenges ------------ None Game ------ Seed BarrageBottomlessPurifier Manual? 0 Play Time 00:35:31 Cumulative 347.2 hours Start 2024.12.24 @ 20:08:28 End 2024.12.24 @ 21:03:12 Sessions 1 Manual Loads 0 Difficulty Rogue Special Mode None Game No. 139 Rogue 139 Adventurer 0 Explorer 0 Win Type - Total 12 Types 10/0/1/1/0/0/0/0/0 Lore% 48 Gallery% 75 Achievement% 67 Wizard Run 0 Options --------- Layout 0 ASCII 0 Keyboard 0 Movement Numpad Keybinds 0 Fullscreen 1 Font 24/Smallcaps Map View 76x50 Zoom Use 0% Tactical HUD 1 Map Filters NONE Filters NONE Steam 1 RUN: 2529072e-13db-4be9-9085-f4cb821f80b9